fUSD/lending_fUSD_20250105
["ID","MTS","AMOUNT","RATE_DAILY","PERIOD"]
[347689760,1736065843015,-500.0,9.999e-05,2]
[347689761,1736065843024,-500.0,9.999e-05,2]
[347689762,1736065843033,-155.94650853,9.999e-05,2]
[347689763,1736065843042,-500.0,9.999e-05,2]
[347689765,1736065843051,-500.0,9.999e-05,2]
[347689766,1736065843060,-500.0,9.999e-05,2]
[347689767,1736065843070,-500.0,9.999e-05,2]
[347689768,1736065843079,-500.0,9.999e-05,2]
[347689769,1736065843087,-500.0,9.999e-05,2]
[347689770,1736065843096,-560.43,9.999e-05,2]
[347689771,1736065843105,-500.0,9.999e-05,2]
[347689772,1736065843114,-500.0,9.999e-05,2]
[347689773,1736065843122,-500.0,9.999e-05,2]
[347689775,1736065843131,-521.126174,9.999e-05,2]
[347689776,1736065843142,-586.55,9.999e-05,2]
[347689777,1736065843151,-500.0,9.999e-05,2]
[347689778,1736065843159,-500.0,9.999e-05,2]
[347689779,1736065843169,-500.0,9.999e-05,2]
[347689780,1736065843178,-500.0,9.999e-05,2]
[347689781,1736065843187,-181.557728,9.999e-05,2]
[347689782,1736065843195,-500.0,9.999e-05,2]
[347689783,1736065843208,-500.0,9.999e-05,2]
[347689784,1736065843217,-500.0,9.999e-05,2]
[347689785,1736065843226,-500.0,9.999e-05,2]
[347689786,1736065843235,-500.0,9.999e-05,2]
[347689787,1736065843244,-500.0,9.999e-05,2]
[347689788,1736065843253,-500.0,9.999e-05,2]
[347689789,1736065843262,-500.0,9.999e-05,2]
[347689790,1736065843271,-500.0,9.999e-05,2]
[347689791,1736065843279,-500.0,9.999e-05,2]
[347689792,1736065843288,-500.0,9.999e-05,2]
[347689793,1736065843297,-500.0,9.999e-05,2]
[347689794,1736065843307,-500.0,9.999e-05,2]
[347689795,1736065843316,-500.0,9.999e-05,2]
[347689796,1736065843325,-500.0,9.999e-05,2]
[347689797,1736065843334,-500.0,9.999e-05,2]
[347689798,1736065843343,-500.0,9.999e-05,2]
[347689799,1736065843353,-500.0,9.999e-05,2]
[347689800,1736065843361,-500.0,9.999e-05,2]
[347689801,1736065843370,-500.0,9.999e-05,2]
[347689802,1736065843379,-500.0,9.999e-05,2]
[347689803,1736065843388,-500.0,9.999e-05,2]
[347689804,1736065843397,-500.0,9.999e-05,2]
[347689805,1736065843406,-500.0,9.999e-05,2]
[347689806,1736065843415,-500.0,9.999e-05,2]
[347689807,1736065843425,-500.0,9.999e-05,2]
[347689808,1736065843434,-500.0,9.999e-05,2]
[347689809,1736065843443,-500.0,9.999e-05,2]
[347689810,1736065843451,-500.0,9.999e-05,2]
[347689811,1736065843460,-500.0,9.999e-05,2]
[347689812,1736065843469,-500.0,9.999e-05,2]
[347689813,1736065843479,-500.0,9.999e-05,2]
[347689814,1736065843487,-500.0,9.999e-05,2]
[347689815,1736065843496,-500.0,9.999e-05,2]
[347689816,1736065843506,-500.0,9.999e-05,2]
[347689817,1736065843515,-500.0,9.999e-05,2]
[347689818,1736065843525,-500.0,9.999e-05,2]
[347689820,1736065843533,-500.0,9.999e-05,2]
[347689822,1736065843542,-500.0,9.999e-05,2]
[347689823,1736065843551,-500.0,9.999e-05,2]
[347689824,1736065843560,-500.0,9.999e-05,2]
[347689825,1736065843570,-500.0,9.999e-05,2]
[347689826,1736065843578,-521.93,9.999e-05,2]
[347689827,1736065843587,-597.38,9.999e-05,2]
[347689828,1736065843595,-500.0,9.999e-05,2]
[347689829,1736065843604,-500.0,9.999e-05,2]
[347689830,1736065843614,-500.0,9.999e-05,2]
[347689831,1736065843623,-316.47,9.999e-05,2]
[347689832,1736065843632,-575.47,9.999e-05,2]
[347689833,1736065843641,-500.0,9.999e-05,2]
[347689834,1736065843650,-500.0,9.999e-05,2]
[347689835,1736065843659,-500.0,9.999e-05,2]
[347689836,1736065843668,-500.0,9.999e-05,2]
[347689837,1736065843677,-500.0,9.999e-05,2]
[347689838,1736065843686,-255.64,9.999e-05,2]
[347689839,1736065843695,-500.0,9.999e-05,2]
[347689840,1736065843704,-500.0,9.999e-05,2]
[347689841,1736065843717,-500.0,9.999e-05,2]
[347689842,1736065843726,-341.05885066,9.999e-05,2]
[347689843,1736065843735,-500.0,9.999e-05,2]
[347689844,1736065843746,-500.0,9.999e-05,2]
[347689845,1736065843755,-500.0,9.999e-05,2]
[347689846,1736065843765,-500.0,9.999e-05,2]
[347689847,1736065843774,-500.0,9.999e-05,2]
[347689848,1736065843783,-500.0,9.999e-05,2]
[347689849,1736065843792,-500.0,9.999e-05,2]
[347689850,1736065843801,-500.0,9.999e-05,2]
[347689851,1736065843810,-500.0,9.999e-05,2]
[347689852,1736065843819,-500.0,9.999e-05,2]
[347689853,1736065843828,-500.0,9.999e-05,2]
[347689854,1736065843837,-428.13,9.999e-05,2]
[347689855,1736065843846,-500.0,9.999e-05,2]
[347689856,1736065843855,-500.0,9.999e-05,2]
[347689857,1736065843864,-231.75,9.999e-05,2]
[347689858,1736065843873,-500.0,9.999e-05,2]
[347689859,1736065843882,-528.95,9.999e-05,2]
[347689860,1736065843890,-500.0,9.999e-05,2]
[347689861,1736065843900,-500.0,9.999e-05,2]
[347689862,1736065843909,-500.0,9.999e-05,2]
[347689863,1736065843918,-544.08,9.999e-05,2]
[347689864,1736065843927,-500.0,9.999e-05,2]
[347689865,1736065843936,-3527.3310025,9.999e-05,2]
[347689866,1736065843945,-500.0,9.999e-05,2]
[347689867,1736065843954,-582.36846618,9.999e-05,2]
[347689868,1736065843966,-411.01,9.999e-05,2]
[347689869,1736065843975,-374.49,9.999e-05,2]
[347689870,1736065843986,-500.0,9.999e-05,2]
[347689871,1736065843995,-500.0,9.999e-05,2]
[347689872,1736065844004,-629.42,9.999e-05,2]
[347689873,1736065844013,-500.0,9.999e-05,2]
[347689874,1736065844022,-500.0,9.999e-05,2]
[347689875,1736065844032,-338.17,9.999e-05,2]
[347689876,1736065844041,-500.0,9.999e-05,2]
[347689877,1736065844050,-500.0,9.999e-05,2]
[347689878,1736065844062,-500.0,9.999e-05,2]
[347689879,1736065844071,-500.91669581,9.999e-05,2]
[347689880,1736065844081,-500.0,9.999e-05,2]
[347689881,1736065844090,-500.0,9.999e-05,2]
[347689882,1736065844099,-500.0,9.999e-05,2]
[347689883,1736065844109,-11025.6204741,9.999e-05,2]
[347689884,1736065844118,-500.0,9.999e-05,2]
[347689885,1736065844127,-500.0,9.999e-05,2]
[347689886,1736065844136,-187.07,9.999e-05,2]
[347689887,1736065844147,-500.0,9.999e-05,2]
[347689888,1736065844155,-500.0,9.999e-05,2]
[347689889,1736065844164,-519.05,9.999e-05,2]
[347689890,1736065844173,-156.35,9.999e-05,2]
[347689891,1736065844183,-248.94,9.999e-05,2]
[347689892,1736065844193,-500.0,9.999e-05,2]
[347689893,1736065844204,-500.0,9.999e-05,2]
[347689894,1736065844214,-500.0,9.999e-05,2]
[347689895,1736065844223,-500.0,9.999e-05,2]
[347689896,1736065844232,-500.0,9.999e-05,2]
[347689897,1736065844240,-500.0,9.999e-05,2]
[347689898,1736065844250,-500.0,9.999e-05,2]
[347689899,1736065844259,-500.0,9.999e-05,2]
[347689900,1736065844267,-970.23,9.999e-05,2]
[347689901,1736065844276,-500.0,9.999e-05,2]
[347689902,1736065844284,-500.0,9.999e-05,2]
[347689903,1736065844293,-1107.91,9.999e-05,2]
[347689904,1736065844302,-649.78,9.999e-05,2]
[347689905,1736065844311,-1783.62,9.999e-05,2]
[347689906,1736065844321,-500.0,9.999e-05,2]
[347689907,1736065844329,-500.0,9.999e-05,2]
[347689908,1736065844338,-686.99,9.999e-05,2]
[347689909,1736065844347,-279.11,9.999e-05,2]
[347689910,1736065844356,-520.61,9.999e-05,2]
[347689911,1736065844365,-1856.38,9.999e-05,2]
[347689912,1736065844373,-500.0,9.999e-05,2]
[347689913,1736065844383,-500.0,9.999e-05,7]
[347689914,1736065844392,-500.0,9.999e-05,2]
[347689915,1736065844401,-1764.92,9.999e-05,2]
[347689916,1736065844410,-257.72,9.999e-05,2]
[347689917,1736065844418,-500.0,9.999e-05,2]
[347689918,1736065844428,-557.12,9.999e-05,2]
[347689919,1736065844437,-1106.77,9.999e-05,2]
[347689920,1736065844446,-249.75,9.999e-05,2]
[347689921,1736065844455,-570.44,9.999e-05,2]
[347689922,1736065844465,-2283.05,9.999e-05,2]
[347689923,1736065844474,-500.0,9.999e-05,2]
[347689924,1736065844482,-943.16,9.999e-05,2]
[347689925,1736065844491,-500.0,9.999e-05,2]
[347689926,1736065844500,-500.0,9.999e-05,2]
[347689927,1736065844509,-500.0,9.999e-05,2]
[347689928,1736065844518,-500.0,9.999e-05,2]
[347689929,1736065844527,-500.0,9.999e-05,2]
[347689930,1736065844536,-710.2,9.999e-05,2]
[347689931,1736065844545,-500.0,9.999e-05,2]
[347689932,1736065844554,-635.47,9.999e-05,2]
[347689933,1736065844563,-330.74,9.999e-05,2]
[347689934,1736065844572,-1630.02,9.999e-05,2]
[347689935,1736065844581,-89157.6042629,0.0001,2]
[347689936,1736065844857,-7054.72152584,0.0001,2]
[347689937,1736065844868,-572.1783775,0.0001,2]
[347689938,1736065845431,-56.88408601,0.0001,2]
[347689939,1736065845458,-500.0,9.993e-05,2]
[347689940,1736065845468,-43182.50155335,0.0001,2]
[347689941,1736065845479,-548.009515,0.0001,2]
[347689958,1736065846179,-500.0,9.991e-05,2]
[347689960,1736065846189,-196.102097,9.999e-05,2]
[347689962,1736065846199,-495.087923,0.0001,2]
[347689990,1736065846449,-405.38910023,0.0001,2]
[347689998,1736065990732,511.960521,0.00021999,120]
[347689999,1736065993102,2000.0,0.00021999,120]
[347690000,1736065995660,162.494179,0.00021999,120]
[347690001,1736066028390,317.949214,0.00021999,120]
[347690004,1736066592635,1409.473918,0.00021999,120]
[347690007,1736066847072,1000.0,0.00022,120]
[347690010,1736066896821,1515.0,0.00022,120]
[347690011,1736066906767,1000.0,0.00022,120]
[347690012,1736066969248,-679.22,8.219e-05,2]
[347690015,1736067032421,-198.34,9.058e-05,2]
[347690016,1736067032431,-250.0,9.117e-05,2]
[347690017,1736067032440,-612.19,9.122e-05,2]
[347690018,1736067032449,-428.85,9.123e-05,2]
[347690019,1736067032459,-159.24,9.14e-05,2]
[347690020,1736067032468,-150.0,9.173e-05,2]
[347690021,1736067032477,-150.0,9.173e-05,2]
[347690022,1736067032487,-31.50414371,9.173e-05,2]
[347690023,1736067032500,-118.49585629,9.173e-05,2]
[347690024,1736067032509,-150.36629629,9.173e-05,2]
[347690025,1736067032519,-150.191888,9.173e-05,2]
[347690026,1736067032528,-120.94595942,9.173e-05,2]
[347690027,1736067032541,-29.22340072,9.173e-05,2]
[347690028,1736067032551,-150.27928982,9.173e-05,2]
[347690029,1736067032562,-150.25852967,9.173e-05,2]
[347690030,1736067032571,-150.26934651,9.173e-05,2]
[347690031,1736067032580,-55.43943328,9.173e-05,2]
[347690032,1736067032593,-94.56056672,9.173e-05,2]
[347690033,1736067032603,-150.0,9.226e-05,2]
[347690034,1736067032617,-150.0,9.229e-05,2]
[347690035,1736067032627,-150.0,9.275e-05,2]
[347690036,1736067032637,-150.0,9.28e-05,2]
[347690037,1736067032648,-150.0,9.286e-05,2]
[347690038,1736067032658,-150.0,9.334e-05,2]
[347690039,1736067032667,-150.0,9.342e-05,2]
[347690040,1736067032676,-150.0,9.376e-05,2]
[347690041,1736067032685,-150.0,9.387e-05,2]
[347690042,1736067032695,-150.0,9.399e-05,2]
[347690043,1736067032705,-1573.12788399,9.412e-05,2]
[347690044,1736067032718,-33038.87211601,9.412e-05,2]
[347690045,1736067032728,-150.0,9.441e-05,2]
[347690046,1736067032740,-166.33,9.446e-05,2]
[347690047,1736067032750,-150.0,9.456e-05,2]
[347690048,1736067032760,-150.0,9.478e-05,2]
[347690049,1736067032769,-150.0,9.479e-05,2]
[347690050,1736067032778,-150.0,9.494e-05,2]
[347690051,1736067032789,-302.998,9.5e-05,2]
[347690052,1736067032798,-150.0,9.512e-05,2]
[347690053,1736067032807,-150.0,9.548e-05,2]
[347690054,1736067032818,-150.0,9.569e-05,2]
[347690055,1736067032828,-150.0,9.58e-05,2]
[347690056,1736067032837,-150.0,9.602e-05,2]
[347690057,1736067032846,-150.0,9.626e-05,2]
[347690058,1736067032854,-150.0,9.655e-05,2]
[347690059,1736067032863,-150.0,9.682e-05,2]
[347690060,1736067032873,-150.0,9.682e-05,2]
[347690062,1736067032881,-150.0,9.709e-05,2]
[347690064,1736067032890,-150.0,9.739e-05,2]
[347690066,1736067032899,-150.0,9.763e-05,2]
[347690068,1736067032909,-150.0,9.784e-05,2]
[347690070,1736067032918,-6161.49970459,9.794e-05,2]
[347690074,1736067032942,-1328.681,9.794e-05,2]
[347690076,1736067032954,-790.74129541,9.794e-05,2]
[347690078,1736067032963,-150.0,9.795e-05,2]
[347690080,1736067032972,-150.0,9.816e-05,2]
[347690082,1736067032982,-150.0,9.852e-05,2]
[347690084,1736067032991,-150.0,9.87e-05,2]
[347690086,1736067033000,-39.3782138,9.886e-05,2]
[347690089,1736067033019,-110.6217862,9.886e-05,2]
[347690091,1736067033028,-1975.2163,9.891e-05,2]
[347690093,1736067033037,-525.6225,9.891e-05,2]
[347690095,1736067033046,-286.83055832,9.891e-05,2]
[347690097,1736067033057,-5884.05154168,9.891e-05,2]
[347690099,1736067033066,-169.07496712,9.891e-05,2]
[347690102,1736067033084,-373.12083288,9.891e-05,2]
[347690104,1736067033093,-1755.31936609,9.893e-05,2]
[347690106,1736067033104,-3276.84887466,9.893e-05,2]
[347690108,1736067033115,-295.49189213,9.893e-05,2]
[347690118,1736067033202,-2900.0,9.893e-05,2]
[347690121,1736067033214,-1773.74703026,9.893e-05,2]
[347690128,1736067038391,-6981.62753686,9.893e-05,2]
[347690129,1736067038400,-2500.0,9.893e-05,2]
[347690130,1736067038410,-4006.5995,9.898e-05,2]
[347690131,1736067038419,-150.0,9.909e-05,2]
[347690132,1736067038428,-150.0,9.924e-05,2]
[347690133,1736067038437,-150.0,9.965e-05,2]
[347690134,1736067038446,-150.0,9.977e-05,2]
[347690135,1736067038456,-150.0,9.988e-05,2]
[347690136,1736067038465,-500.0,9.991e-05,2]
[347690137,1736067038474,-500.0,9.991e-05,2]
[347690138,1736067038484,-500.0,9.991e-05,2]
[347690139,1736067038493,-500.0,9.991e-05,2]
[347690140,1736067038503,-500.0,9.991e-05,2]
[347690141,1736067038512,-240.60525727,9.991e-05,2]
[347690142,1736067038521,-541.6,9.991e-05,2]
[347690143,1736067038530,-500.0,9.991e-05,2]
[347690144,1736067038539,-500.0,9.991e-05,2]
[347690145,1736067038548,-500.0,9.991e-05,2]
[347690146,1736067038557,-314.64,9.991e-05,2]
[347690147,1736067038566,-224.43,9.991e-05,2]
[347690148,1736067038578,-221.07,9.991e-05,2]
[347690149,1736067038587,-500.0,9.991e-05,2]
[347690150,1736067038596,-547.49,9.991e-05,2]
[347690151,1736067038605,-500.0,9.991e-05,2]
[347690152,1736067038614,-500.0,9.991e-05,2]
[347690153,1736067038623,-339.13906896,9.991e-05,2]
[347690154,1736067038632,-500.0,9.991e-05,2]
[347690155,1736067038641,-500.0,9.991e-05,2]
[347690156,1736067038650,-500.0,9.991e-05,2]
[347690157,1736067038659,-588.57,9.991e-05,2]
[347690158,1736067038668,-500.0,9.991e-05,2]
[347690159,1736067038677,-420.15,9.991e-05,2]
[347690160,1736067038686,-500.0,9.991e-05,2]
[347690161,1736067038699,-441.96,9.991e-05,2]
[347690162,1736067038713,-500.0,9.991e-05,2]
[347690163,1736067038727,-251.32,9.991e-05,2]
[347690164,1736067038739,-500.0,9.991e-05,2]
[347690165,1736067038756,-500.0,9.991e-05,2]
[347690166,1736067038768,-500.0,9.991e-05,2]
[347690167,1736067038781,-500.0,9.991e-05,2]
[347690168,1736067038795,-500.0,9.991e-05,2]
[347690169,1736067038808,-500.0,9.991e-05,2]
[347690170,1736067038820,-471.54036943,9.991e-05,2]
[347690173,1736067038834,-28.45963057,9.991e-05,2]
[347690175,1736067038847,-260.08,9.991e-05,2]
[347690177,1736067038859,-578.21,9.991e-05,2]
[347690178,1736067038872,-500.0,9.991e-05,2]
[347690179,1736067038884,-500.0,9.991e-05,2]
[347690180,1736067038897,-500.0,9.991e-05,2]
[347690181,1736067038910,-500.0,9.991e-05,2]
[347690182,1736067038922,-500.0,9.991e-05,2]
[347690183,1736067038935,-500.0,9.991e-05,2]
[347690184,1736067038948,-128.04440963,9.991e-05,2]
[347690185,1736067038982,-371.95559037,9.991e-05,2]
[347690186,1736067038996,-500.0,9.991e-05,2]
[347690187,1736067039009,-500.0,9.991e-05,2]
[347690188,1736067039019,-500.0,9.991e-05,7]
[347690189,1736067039030,-500.0,9.991e-05,2]
[347690190,1736067039042,-500.0,9.991e-05,2]
[347690191,1736067039057,-500.0,9.991e-05,2]
[347690192,1736067039068,-500.0,9.991e-05,2]
[347690193,1736067039078,-500.0,9.991e-05,2]
[347690194,1736067039089,-500.0,9.991e-05,2]
[347690195,1736067039102,-364.48,9.991e-05,2]
[347690196,1736067039116,-500.0,9.991e-05,2]
[347690197,1736067039127,-500.0,9.991e-05,2]
[347690198,1736067039137,-500.0,9.991e-05,2]
[347690199,1736067039152,-500.0,9.991e-05,2]
[347690200,1736067039163,-500.0,9.991e-05,2]
[347690201,1736067039176,-443.32,9.991e-05,2]
[347690202,1736067039187,-632.72,9.991e-05,2]
[347690203,1736067039199,-500.0,9.991e-05,2]
[347690204,1736067039211,-500.0,9.991e-05,2]
[347690205,1736067039223,-500.0,9.991e-05,2]
[347690206,1736067039235,-259.96337215,9.991e-05,2]
[347690207,1736067039268,-248.53662785,9.991e-05,2]
[347690208,1736067039280,-276.0706515,9.991e-05,2]
[347690209,1736067039294,-223.9293485,9.991e-05,2]
[347690210,1736067039306,-512.75,9.991e-05,2]
[347690211,1736067039317,-500.0,9.991e-05,2]
[347690212,1736067039329,-500.0,9.991e-05,2]
[347690213,1736067039341,-500.0,9.991e-05,2]
[347690214,1736067039352,-500.0,9.991e-05,2]
[347690215,1736067039364,-500.0,9.991e-05,2]
[347690216,1736067039376,-500.0,9.991e-05,2]
[347690217,1736067039387,-500.0,9.991e-05,2]
[347690218,1736067039399,-500.0,9.991e-05,2]
[347690219,1736067039411,-500.0,9.991e-05,2]
[347690220,1736067039423,-153.21,9.991e-05,2]
[347690221,1736067039435,-500.0,9.991e-05,2]
[347690222,1736067039447,-500.0,9.991e-05,2]
[347690223,1736067039458,-210.22,9.991e-05,2]
[347690224,1736067039469,-500.0,9.991e-05,2]
[347690225,1736067039482,-500.0,9.991e-05,2]
[347690226,1736067039494,-500.0,9.991e-05,2]
[347690227,1736067039506,-500.0,9.991e-05,2]
[347690228,1736067039518,-500.0,9.991e-05,2]
[347690229,1736067039529,-500.0,9.991e-05,2]
[347690230,1736067039541,-500.0,9.991e-05,2]
[347690231,1736067039554,-500.0,9.991e-05,2]
[347690232,1736067039569,-5000.0,9.991e-05,2]
[347690233,1736067039583,-500.0,9.991e-05,2]
[347690234,1736067039595,-734.92,9.991e-05,2]
[347690235,1736067039606,-500.0,9.991e-05,2]
[347690236,1736067039617,-500.0,9.991e-05,2]
[347690237,1736067039629,-500.0,9.991e-05,2]
[347690238,1736067039640,-500.0,9.991e-05,2]
[347690239,1736067039651,-500.0,9.991e-05,2]
[347690240,1736067039662,-500.0,9.991e-05,2]
[347690241,1736067039673,-500.0,9.991e-05,2]
[347690242,1736067039684,-500.0,9.991e-05,2]
[347690243,1736067039696,-146.64451105,9.991e-05,2]
[347690244,1736067039710,-320.16690131,9.991e-05,2]
[347690245,1736067039721,-500.0,9.991e-05,2]
[347690246,1736067039733,-500.0,9.991e-05,2]
[347690247,1736067039747,-500.0,9.991e-05,2]
[347690248,1736067039759,-500.0,9.991e-05,2]
[347690249,1736067039770,-500.0,9.991e-05,2]
[347690250,1736067039781,-500.0,9.991e-05,2]
[347690251,1736067039792,-680.6,9.991e-05,2]
[347690252,1736067039803,-1562.11,9.991e-05,2]
[347690253,1736067039815,-500.0,9.992e-05,2]
[347690254,1736067039826,-3490.92,9.992e-05,2]
[347690255,1736067039837,-737.22590538,9.992e-05,2]
[347690256,1736067039851,-4417.89367247,9.992e-05,2]
[347690257,1736067039879,-122.30042215,9.992e-05,2]
[347690258,1736067039891,-2649.31315785,9.992e-05,2]
[347690259,1736067040323,-641.51684215,9.992e-05,2]
[347690260,1736067040333,-304.64616352,9.992e-05,2]
[347690261,1736067040600,-708.0712393,9.992e-05,2]
[347690262,1736067040626,-697.31500003,9.992e-05,2]
[347690263,1736067040643,-1043.78759715,9.992e-05,2]
[347690264,1736067040652,-4647.45,9.992e-05,2]
[347690265,1736067040661,-1805.04,9.992e-05,2]
[347690266,1736067040670,-1805.04,9.992e-05,2]
[347690267,1736067040679,-3757.09,9.992e-05,2]
[347690268,1736067040688,-500.0,9.992e-05,2]
[347690269,1736067040697,-500.0,9.992e-05,2]
[347690270,1736067040706,-500.0,9.992e-05,2]
[347690271,1736067040715,-500.0,9.992e-05,2]
[347690272,1736067040725,-1852.46,9.992e-05,2]
[347690274,1736067040735,-549.9,9.992e-05,2]
[347690275,1736067040748,-1440.76,9.992e-05,2]
[347690276,1736067040757,-500.0,9.992e-05,2]
[347690277,1736067040766,-1139.01,9.992e-05,2]
[347690279,1736067040775,-963.71,9.992e-05,2]
[347690280,1736067040784,-1215.5,9.992e-05,2]
[347690281,1736067040793,-500.0,9.993e-05,2]
[347690282,1736067040802,-500.0,9.993e-05,2]
[347690283,1736067040811,-500.0,9.993e-05,2]
[347690284,1736067040820,-500.0,9.993e-05,2]
[347690285,1736067040829,-599.06,9.993e-05,2]
[347690286,1736067040839,-152.97997705,9.993e-05,2]
[347690287,1736067040848,-500.0,9.993e-05,2]
[347690288,1736067040857,-500.0,9.993e-05,2]
[347690290,1736067040866,-500.0,9.993e-05,2]
[347690291,1736067040876,-728.49086718,9.993e-05,2]
[347690292,1736067040891,-4.88913282,9.993e-05,2]
[347690293,1736067040899,-500.0,9.993e-05,2]
[347690294,1736067040907,-500.0,9.993e-05,2]
[347690295,1736067040916,-500.0,9.993e-05,2]
[347690296,1736067040925,-500.0,9.993e-05,2]
[347690297,1736067040934,-500.0,9.993e-05,2]
[347690298,1736067040943,-550.14,9.993e-05,2]
[347690299,1736067040952,-617.45,9.993e-05,2]
[347690300,1736067040961,-500.0,9.993e-05,2]
[347690301,1736067040970,-500.0,9.993e-05,2]
[347690302,1736067040980,-701.53,9.993e-05,2]
[347690303,1736067040989,-428.55086718,9.993e-05,2]
[347690304,1736067041000,-71.44913282,9.993e-05,2]
[347690305,1736067041009,-500.0,9.993e-05,2]
[347690306,1736067041018,-500.0,9.993e-05,2]
[347690307,1736067041027,-500.0,9.993e-05,2]
[347690308,1736067041036,-500.0,9.993e-05,2]
[347690309,1736067041045,-500.0,9.993e-05,2]
[347690310,1736067041054,-171.13312483,9.993e-05,2]
[347690311,1736067041063,-500.0,9.993e-05,2]
[347690312,1736067041072,-500.0,9.993e-05,2]
[347690313,1736067041081,-500.0,9.993e-05,2]
[347690314,1736067041090,-500.0,9.993e-05,2]
[347690315,1736067041099,-500.0,9.993e-05,2]
[347690316,1736067041109,-500.0,9.993e-05,2]
[347690317,1736067041118,-505.27492351,9.993e-05,2]
[347690318,1736067041127,-500.0,9.993e-05,2]
[347690319,1736067041136,-500.0,9.993e-05,2]
[347690320,1736067041145,-500.0,9.993e-05,2]
[347690321,1736067041154,-500.0,9.993e-05,2]
[347690322,1736067041163,-500.0,9.993e-05,2]
[347690323,1736067041172,-500.0,9.993e-05,2]
[347690324,1736067041182,-500.0,9.993e-05,2]
[347690325,1736067041191,-500.0,9.993e-05,2]
[347690326,1736067041200,-347.75927388,9.993e-05,2]
[347690327,1736067041209,-500.0,9.993e-05,2]
[347690328,1736067041218,-500.0,9.993e-05,2]
[347690329,1736067041228,-500.0,9.993e-05,2]
[347690330,1736067041237,-500.0,9.993e-05,2]
[347690331,1736067041246,-500.0,9.993e-05,2]
[347690332,1736067041255,-500.0,9.993e-05,2]
[347690333,1736067041265,-500.0,9.993e-05,2]
[347690334,1736067041274,-500.0,9.993e-05,2]
[347690335,1736067041284,-282.58,9.993e-05,2]
[347690336,1736067041293,-500.0,9.993e-05,2]
[347690337,1736067041303,-500.0,9.993e-05,2]
[347690338,1736067041312,-500.0,9.993e-05,2]
[347690339,1736067041321,-500.0,9.993e-05,2]
[347690340,1736067041330,-187.83,9.993e-05,2]
[347690341,1736067041339,-500.0,9.993e-05,2]
[347690342,1736067041349,-500.16,9.993e-05,2]
[347690343,1736067041358,-500.0,9.993e-05,2]
[347690344,1736067041367,-500.0,9.993e-05,2]
[347690345,1736067041377,-180.89,9.993e-05,2]
[347690346,1736067041386,-169.69,9.993e-05,2]
[347690347,1736067041395,-500.0,9.993e-05,2]
[347690348,1736067041404,-675.13,9.993e-05,2]
[347690349,1736067041414,-500.0,9.993e-05,2]
[347690350,1736067041423,-500.0,9.993e-05,2]
[347690351,1736067041432,-500.0,9.993e-05,2]
[347690352,1736067041442,-500.0,9.993e-05,2]
[347690353,1736067041451,-697.29,9.993e-05,2]
[347690354,1736067041460,-500.0,9.993e-05,2]
[347690355,1736067041470,-340.23448484,9.993e-05,2]
[347690356,1736067041482,-159.76551516,9.993e-05,2]
[347690357,1736067041491,-500.0,9.993e-05,2]
[347690358,1736067041500,-500.0,9.993e-05,2]
[347690359,1736067041509,-500.0,9.993e-05,2]
[347690360,1736067041518,-500.0,9.993e-05,2]
[347690361,1736067041527,-344.33,9.993e-05,2]
[347690362,1736067041537,-500.0,9.993e-05,2]
[347690363,1736067041546,-500.0,9.993e-05,2]
[347690364,1736067041555,-500.0,9.993e-05,2]
[347690365,1736067041564,-102.39820202,9.993e-05,2]
[347690366,1736067041582,-397.60179798,9.993e-05,2]
[347690367,1736067041591,-403.11069471,9.993e-05,2]
[347690368,1736067041615,-105.74930529,9.993e-05,2]
[347690369,1736067041625,-179.47,9.993e-05,2]
[347690370,1736067041634,-500.0,9.993e-05,2]
[347690371,1736067041643,-500.0,9.993e-05,2]
[347690372,1736067041652,-824.11,9.993e-05,2]
[347690373,1736067041660,-500.0,9.993e-05,2]